Workbook

Sheet Лист1
A1: Согласовано: | F1: Утверждаю:
A2: Мед.сестра ГБУЗ НСО ККДП №27 | D2: Заведующи МАДОУ д/с №10
A3: ________________ Ю.Н. Иванова | D3: _________________Г.Н. Лядова
D4: "_____"____________20____г.
B5: МЕНЮ-ПЕРЕЧЕНЬ на 12.12.2025
A7: Прием | B7: Блюдо | C7: Диетический | E7: Выход, гр. | G7: Калорийность
A8: пищи | C8: режим | E8: ясли | F8: сад | G8: ясли | H8: сад
A9: Завтрак | B9: Каша "Веснушка" молочная с маслом | C9: Дети | E9: 180 | F9: 200 | G9: 240 | H9: 267
B10: Какао с молоком | E10: 150 | F10: 180 | G10: 89 | H10: 107
B11: Бутерброд с маслом | E11: 20\5 | F11: 30\7 | G11: 85 | H11: 109
B12: всего | E12: =E9+E10+25 -> 355 | F12: =F9+F10+37 -> 417 | G12: =G9+G10+G11 -> 414 | H12: =H9+H10+H11 -> 483
A13: 2-й Завтрак
B14: всего | E14: =E13 -> 0 | F14: =F13 -> 0 | G14: 0 | H14: 0
A15: Обед | B15: Суп картофельный с клецками и птицей | E15: 180 | F15: 200 | G15: 63 | H15: 70
B16: Овощное рагу с мясом | E16: 130 | F16: 150 | G16: 111 | H16: 128
B17: Картофель отварной | E17: 100 | F17: 150 | G17: 102 | H17: 155
B19: Напиток из шиповника с лимоном | E19: 150\5 | F19: 180\5 | G19: 81 | H19: 89
B20: Хлеб ржаной | E20: 40 | F20: 50 | G20: 69 | H20: 87
B21: Хлеб пшеничный | E21: 20 | F21: 25 | G21: 48 | H21: 60
B22: всего | E22: =E15+E16+E20+E21+155 -> 525 | F22: =F15+F16+F20+F21+185 -> 610 | G22: =G15+G16+G19:H19+G20+G21 -> 372 | H22: =H15+H16+H19:I19+H20+H21 -> 434
A23: Полдник | B23: Сок | E23: 200 | F23: 200 | G23: 84 | H23: 84
B24: Печенье | E24: 22 | F24: 38 | G24: 95 | H24: 163
B25: всего | E25: =E23+E24 -> 222 | F25: =F23+F24 -> 238 | G25: =G23+G24 -> 179 | H25: 247
A26: Ужин | B26: Суп молочный с рисом | E26: 180 | F26: 200 | G26: 112 | H26: 124
B27: Чай с сахаром | E27: 180 | F27: 200 | G27: 40 | H27: 44
B28: Хлеб пшеничный | E28: 20 | F28: 25 | G28: 48 | H28: 60
B29: всего | E29: =E26+E27+E28 -> 380 | F29: =F26+F27+F28 -> 425 | G29: 200 | H29: 228
A30: Всего за день кКалл | G30: =G12+G14+G22+G25+G29 -> 1165 | H30: =H12+H14+H22+H25+H29 -> 1392
C32: Составил Сидорова О.А.________________
